[Event "*** Titled Tuesday Blitz"]
[Site "Chess.com"]
[Date "2020.11.10"]
[Round "1"]
[White "ENajer77"]
[Black "stepanosinovsky"]
[Result "1-0"]
[WhiteElo "2687"]
[BlackElo "2348"]
[TimeControl "180+1"]
[EndTime "10:05:23 PST"]
[Termination "ENajer77 won on time"]

1. d4 {[%clk 0:02:53.1]} 1... Nf6 {[%clk 0:02:59.3]} 2. c4 {[%clk 0:02:50.7]}
2... g6 {[%clk 0:02:58.5]} 3. Nc3 {[%clk 0:02:50]} 3... Bg7 {[%clk 0:02:58]} 4.
e4 {[%clk 0:02:49.4]} 4... O-O {[%clk 0:02:55.1]} 5. Be2 {[%clk 0:02:50]} 5...
d6 {[%clk 0:02:28.7]} 6. Be3 {[%clk 0:02:48.9]} 6... Nbd7 {[%clk 0:02:27.9]} 7.
g4 {[%clk 0:02:46.5]} 7... e5 {[%clk 0:02:25.1]} 8. d5 {[%clk 0:02:43.3]} 8...
Nc5 {[%clk 0:02:18.9]} 9. f3 {[%clk 0:02:43.2]} 9... a5 {[%clk 0:02:11]} 10. Qd2
{[%clk 0:02:41.7]} 10... c6 {[%clk 0:02:10.6]} 11. dxc6 {[%clk 0:02:37.4]} 11...
bxc6 {[%clk 0:02:11.5]} 12. O-O-O {[%clk 0:02:37.6]} 12... Bxg4 {[%clk
0:01:44.6]} 13. Bxc5 {[%clk 0:02:34]} 13... dxc5 {[%clk 0:01:25.1]} 14. fxg4
{[%clk 0:02:33]} 14... Qxd2+ {[%clk 0:01:05.8]} 15. Kxd2 {[%clk 0:02:33.9]}
15... Ne8 {[%clk 0:01:05.5]} 16. Kc2 {[%clk 0:02:31.1]} 16... Nc7 {[%clk
0:01:05.2]} 17. Nf3 {[%clk 0:02:16.8]} 17... Ne6 {[%clk 0:01:04.6]} 18. Rd6
{[%clk 0:02:15.6]} 18... Rfc8 {[%clk 0:01:00.5]} 19. Rhd1 {[%clk 0:02:14.1]}
19... Nd4+ {[%clk 0:00:51.1]} 20. Nxd4 {[%clk 0:02:13.3]} 20... exd4 {[%clk
0:00:21.3]} 21. Na4 {[%clk 0:02:12.4]} 21... Rab8 {[%clk 0:00:19.4]} 22. Rd7
{[%clk 0:02:08]} 22... Be5 {[%clk 0:00:15.7]} 23. h4 {[%clk 0:01:59]} 23... Rd8
{[%clk 0:00:08.8]} 24. Rxd8+ {[%clk 0:01:56.8]} 24... Rxd8 {[%clk 0:00:09.7]}
25. Nxc5 {[%clk 0:01:56.3]} 25... Kg7 {[%clk 0:00:04.2]} 26. Nd3 {[%clk
0:01:52.2]} 26... Bc7 {[%clk 0:00:01.9]} 27. c5 {[%clk 0:01:51.5]} 1-0

[Event "*** Titled Tuesday Blitz"]
[Site "Chess.com"]
[Date "2020.11.10"]
[Round "1"]
[White "Karateloru"]
[Black "ljuks68"]
[Result "1-0"]
[WhiteElo "2711"]
[BlackElo "2363"]
[TimeControl "180+1"]
[EndTime "10:05:26 PST"]
[Termination "Karateloru won by resignation"]

1. e4 {[%clk 0:03:00.9]} 1... e6 {[%clk 0:02:55.8]} 2. e5 {[%clk 0:02:58.5]}
2... d5 {[%clk 0:02:54.6]} 3. exd6 {[%clk 0:02:58.1]} 3... cxd6 {[%clk
0:02:54.5]} 4. d4 {[%clk 0:02:58.7]} 4... Nf6 {[%clk 0:02:53.1]} 5. c4 {[%clk
0:02:58.8]} 5... Nbd7 {[%clk 0:02:52.8]} 6. Nc3 {[%clk 0:02:59.4]} 6... Be7
{[%clk 0:02:49.6]} 7. Bg5 {[%clk 0:02:59.8]} 7... O-O {[%clk 0:02:49.2]} 8. Nf3
{[%clk 0:03:00]} 8... e5 {[%clk 0:02:47.5]} 9. dxe5 {[%clk 0:02:58.5]} 9... dxe5
{[%clk 0:02:46.9]} 10. Be2 {[%clk 0:02:58.7]} 10... b6 {[%clk 0:02:44.6]} 11.
O-O {[%clk 0:02:57.5]} 11... Bb7 {[%clk 0:02:44.4]} 12. Qc2 {[%clk 0:02:55.6]}
12... h6 {[%clk 0:02:34.2]} 13. Bh4 {[%clk 0:02:52.9]} 13... e4 {[%clk
0:02:27.2]} 14. Nd4 {[%clk 0:02:50.1]} 14... Ne5 {[%clk 0:01:53.1]} 15. Rad1
{[%clk 0:02:47.7]} 15... Qc8 {[%clk 0:01:53.1]} 16. Bxf6 {[%clk 0:02:43.6]}
16... Bxf6 {[%clk 0:01:52.4]} 17. Nxe4 {[%clk 0:02:43.8]} 17... Bxe4 {[%clk
0:01:50.6]} 18. Qxe4 {[%clk 0:02:44.7]} 18... Nxc4 {[%clk 0:01:37]} 19. b3
{[%clk 0:02:19.4]} 19... Re8 {[%clk 0:01:31.3]} 20. Qf3 {[%clk 0:02:00.9]} 20...
Ne5 {[%clk 0:01:20.6]} 21. Qg3 {[%clk 0:01:56.2]} 21... Ng6 {[%clk 0:01:04.1]}
22. Bb5 {[%clk 0:01:50.8]} 22... Re5 {[%clk 0:00:52.8]} 23. Bc4 {[%clk
0:01:43.4]} 23... Rg5 {[%clk 0:00:48.1]} 24. Qd6 {[%clk 0:01:37.6]} 24... Qg4
{[%clk 0:00:38.4]} 25. g3 {[%clk 0:01:31.4]} 25... Rd8 {[%clk 0:00:38.2]} 26.
Qc7 {[%clk 0:01:26.7]} 26... Rxd4 {[%clk 0:00:34.6]} 27. Qxf7+ {[%clk
0:01:25.8]} 1-0

[Event "*** Titled Tuesday Blitz"]
[Site "Chess.com"]
[Date "2020.11.10"]
[Round "1"]
[White "GrigorGrigorov"]
[Black "Bodnar_Mykola"]
[Result "1-0"]
[WhiteElo "2741"]
[BlackElo "2385"]
[TimeControl "180+1"]
[EndTime "10:05:27 PST"]
[Termination "GrigorGrigorov won by resignation"]

1. d4 {[%clk 0:03:00.8]} 1... Nf6 {[%clk 0:02:59.7]} 2. c4 {[%clk 0:03:00.2]}
2... e6 {[%clk 0:02:59.9]} 3. Nf3 {[%clk 0:02:59.4]} 3... d5 {[%clk 0:02:59.3]}
4. g3 {[%clk 0:02:59.2]} 4... dxc4 {[%clk 0:02:58.7]} 5. Bg2 {[%clk 0:02:58.9]}
5... Bd7 {[%clk 0:02:58.8]} 6. Ne5 {[%clk 0:02:54.8]} 6... Bc6 {[%clk
0:02:58.4]} 7. Nxc6 {[%clk 0:02:54.3]} 7... Nxc6 {[%clk 0:02:59.3]} 8. e3 {[%clk
0:02:52.9]} 8... Qd7 {[%clk 0:02:58.8]} 9. O-O {[%clk 0:02:52.2]} 9... O-O-O
{[%clk 0:02:58.6]} 10. Nd2 {[%clk 0:02:47]} 10... e5 {[%clk 0:02:55.6]} 11. Nxc4
{[%clk 0:02:41.5]} 11... exd4 {[%clk 0:02:55.6]} 12. Qa4 {[%clk 0:02:31.8]}
12... Bc5 {[%clk 0:02:51.5]} 13. Qb5 {[%clk 0:02:11.2]} 13... Bb6 {[%clk
0:02:46.1]} 14. a4 {[%clk 0:02:09.9]} 14... dxe3 {[%clk 0:02:24.4]} 15. Bxe3
{[%clk 0:02:08.8]} 15... Nd4 {[%clk 0:01:56]} 16. Nxb6+ {[%clk 0:01:57]} 16...
axb6 {[%clk 0:01:47.3]} 17. Bxd4 {[%clk 0:01:48.3]} 17... Qxd4 {[%clk
0:01:43.5]} 18. a5 {[%clk 0:01:47.8]} 18... Qc5 {[%clk 0:01:27.3]} 19. Qb3
{[%clk 0:01:44]} 19... Kb8 {[%clk 0:00:57.5]} 20. a6 {[%clk 0:01:37.7]} 20... c6
{[%clk 0:00:54.1]} 21. axb7 {[%clk 0:01:31.6]} 21... Kxb7 {[%clk 0:00:51.9]} 22.
Rfc1 {[%clk 0:01:30.6]} 22... Qd6 {[%clk 0:00:41.5]} 23. Rxc6 {[%clk 0:01:25.2]}
23... Qxc6 {[%clk 0:00:41.7]} 24. Bxc6+ {[%clk 0:01:20.4]} 24... Kxc6 {[%clk
0:00:42.6]} 25. Qxf7 {[%clk 0:01:20.4]} 25... Rd7 {[%clk 0:00:42.7]} 26. Rc1+
{[%clk 0:01:19.2]} 26... Kb7 {[%clk 0:00:42.4]} 27. Qe6 {[%clk 0:01:19]} 1-0

[Event "*** Titled Tuesday Blitz"]
[Site "Chess.com"]
[Date "2020.11.10"]
[Round "1"]
[White "davigator"]
[Black "emperor87"]
[Result "1-0"]
[WhiteElo "2390"]
[BlackElo "2708"]
[TimeControl "180+1"]
[EndTime "10:05:29 PST"]
[Termination "davigator won by resignation"]

1. e4 {[%clk 0:03:00.9]} 1... c6 {[%clk 0:02:58.2]} 2. d4 {[%clk 0:03:00.4]}
2... d5 {[%clk 0:02:58]} 3. e5 {[%clk 0:03:00]} 3... Bf5 {[%clk 0:02:56.5]} 4.
h4 {[%clk 0:02:59.4]} 4... h5 {[%clk 0:02:55.2]} 5. c4 {[%clk 0:02:57.6]} 5...
e6 {[%clk 0:02:54.3]} 6. Nc3 {[%clk 0:02:55.8]} 6... Nd7 {[%clk 0:02:50.1]} 7.
Be2 {[%clk 0:02:55.4]} 7... dxc4 {[%clk 0:02:43.2]} 8. Bxc4 {[%clk 0:02:55.3]}
8... Ne7 {[%clk 0:02:40.2]} 9. Nge2 {[%clk 0:02:54.7]} 9... Nd5 {[%clk
0:02:39.9]} 10. Bd3 {[%clk 0:02:52.1]} 10... Bxd3 {[%clk 0:02:36.9]} 11. Qxd3
{[%clk 0:02:51.5]} 11... Be7 {[%clk 0:02:37]} 12. g3 {[%clk 0:02:50.5]} 12... g6
{[%clk 0:02:27.1]} 13. Ne4 {[%clk 0:02:50.2]} 13... Kf8 {[%clk 0:02:26.7]} 14.
O-O {[%clk 0:02:49.2]} 14... Kg7 {[%clk 0:02:26.6]} 15. Bg5 {[%clk 0:02:48.4]}
15... Bxg5 {[%clk 0:02:25.3]} 16. Nxg5 {[%clk 0:02:48.1]} 16... Qe7 {[%clk
0:02:24.1]} 17. Rac1 {[%clk 0:02:46.4]} 17... Rac8 {[%clk 0:02:23.1]} 18. a3
{[%clk 0:02:45.3]} 18... c5 {[%clk 0:02:23]} 19. Qe4 {[%clk 0:02:44.4]} 19...
N7b6 {[%clk 0:02:09]} 20. Qf3 {[%clk 0:02:40.5]} 20... c4 {[%clk 0:01:57.3]} 21.
Ne4 {[%clk 0:02:33.4]} 21... Rc6 {[%clk 0:01:48.9]} 22. Rc2 {[%clk 0:02:29.9]}
22... Nc8 {[%clk 0:01:39.6]} 23. Rfc1 {[%clk 0:02:24.9]} 23... b5 {[%clk
0:01:39.6]} 24. Nf4 {[%clk 0:02:10.3]} 24... Ncb6 {[%clk 0:01:33.6]} 25. Ne2
{[%clk 0:02:10.1]} 25... a5 {[%clk 0:01:26.1]} 26. Nd6 {[%clk 0:02:09.5]} 26...
Rxd6 {[%clk 0:01:26]} 27. exd6 {[%clk 0:02:09.1]} 27... Qxd6 {[%clk 0:01:26.2]}
28. Qe4 {[%clk 0:02:04.8]} 28... b4 {[%clk 0:01:22.7]} 29. axb4 {[%clk
0:02:03.9]} 29... axb4 {[%clk 0:01:23]} 30. Ra1 {[%clk 0:02:01.6]} 30... Rc8
{[%clk 0:01:19.6]} 31. Ra6 {[%clk 0:01:58.8]} 31... Qe7 {[%clk 0:01:14.9]} 32.
Qe5+ {[%clk 0:01:57.7]} 32... Qf6 {[%clk 0:01:14.9]} 33. Kg2 {[%clk 0:01:51.7]}
33... Nd7 {[%clk 0:01:02.8]} 34. Qd6 {[%clk 0:01:45.8]} 34... Nb8 {[%clk
0:00:50.1]} 35. Ra7 {[%clk 0:01:40.9]} 35... Qf5 {[%clk 0:00:46.6]} 36. Qe5+
{[%clk 0:01:39.6]} 36... Qxe5 {[%clk 0:00:43.2]} 37. dxe5 {[%clk 0:01:39.4]}
37... Rc5 {[%clk 0:00:43]} 38. Nd4 {[%clk 0:01:36.5]} 38... Nc6 {[%clk
0:00:42.3]} 39. Nxe6+ {[%clk 0:01:34.6]} 1-0

[Event "*** Titled Tuesday Blitz"]
[Site "Chess.com"]
[Date "2020.11.10"]
[Round "1"]
[White "zmeeed67"]
[Black "Gajuchess"]
[Result "0-1"]
[WhiteElo "2377"]
[BlackElo "2731"]
[TimeControl "180+1"]
[EndTime "10:05:31 PST"]
[Termination "Gajuchess won by resignation"]

1. e4 {[%clk 0:02:51.8]} 1... c5 {[%clk 0:03:00.1]} 2. g3 {[%clk 0:02:51.6]}
2... Nc6 {[%clk 0:02:59.7]} 3. Bg2 {[%clk 0:02:51.8]} 3... g6 {[%clk 0:03:00.1]}
4. Ne2 {[%clk 0:02:52.2]} 4... Bg7 {[%clk 0:03:00.7]} 5. O-O {[%clk 0:02:52.6]}
5... d6 {[%clk 0:03:01.1]} 6. Nbc3 {[%clk 0:02:53]} 6... Nf6 {[%clk 0:02:56.5]}
7. a3 {[%clk 0:02:53.2]} 7... O-O {[%clk 0:02:56.6]} 8. Rb1 {[%clk 0:02:53.6]}
8... c4 {[%clk 0:02:51.1]} 9. d3 {[%clk 0:02:36.9]} 9... cxd3 {[%clk 0:02:50.8]}
10. cxd3 {[%clk 0:02:37.1]} 10... Bd7 {[%clk 0:02:44.4]} 11. b4 {[%clk
0:02:35.8]} 11... Rc8 {[%clk 0:02:44.6]} 12. Bb2 {[%clk 0:02:35.7]} 12... Ne5
{[%clk 0:02:35.3]} 13. h3 {[%clk 0:02:31.9]} 13... Qb6 {[%clk 0:02:31.2]} 14.
Kh2 {[%clk 0:02:28.1]} 14... Qa6 {[%clk 0:02:28.2]} 15. b5 {[%clk 0:02:04]}
15... Bxb5 {[%clk 0:02:24.5]} 16. Nxb5 {[%clk 0:02:01.5]} 16... Qxb5 {[%clk
0:02:25.4]} 17. f4 {[%clk 0:01:47.8]} 17... Neg4+ {[%clk 0:02:25.3]} 18. hxg4
{[%clk 0:01:47.4]} 18... Nxg4+ {[%clk 0:02:26.2]} 19. Kg1 {[%clk 0:01:28.8]}
19... Bxb2 {[%clk 0:02:25.5]} 20. Qd2 {[%clk 0:01:07.4]} 20... Qh5 {[%clk
0:02:23.7]} 21. Rf3 {[%clk 0:00:51.8]} 21... Bg7 {[%clk 0:02:17.7]} 22. Rxb7
{[%clk 0:00:50.2]} 22... Rc5 {[%clk 0:02:02]} 23. d4 {[%clk 0:00:32.2]} 23...
Rc4 {[%clk 0:01:56.3]} 24. Rb4 {[%clk 0:00:29.1]} 24... Rc7 {[%clk 0:01:54.7]}
25. e5 {[%clk 0:00:22.7]} 25... Rfc8 {[%clk 0:01:53.8]} 26. Rfb3 {[%clk
0:00:12.2]} 26... Rc2 {[%clk 0:01:52.1]} 27. Qe1 {[%clk 0:00:09.1]} 27... Rxe2
{[%clk 0:01:42.1]} 28. Qxe2 {[%clk 0:00:08.6]} 28... Qh2+ {[%clk 0:01:42.7]} 29.
Kf1 {[%clk 0:00:08.2]} 29... Rc1+ {[%clk 0:01:43.4]} 0-1

[Event "*** Titled Tuesday Blitz"]
[Site "Chess.com"]
[Date "2020.11.10"]
[Round "1"]
[White "Promacherr"]
[Black "tteshan"]
[Result "1-0"]
[WhiteElo "2706"]
[BlackElo "2358"]
[TimeControl "180+1"]
[EndTime "10:05:37 PST"]
[Termination "Promacherr won by resignation"]

1. e4 {[%clk 0:03:00.9]} 1... c5 {[%clk 0:03:00.4]} 2. Nf3 {[%clk 0:03:00.8]}
2... Nc6 {[%clk 0:02:59.1]} 3. c3 {[%clk 0:03:00.6]} 3... d5 {[%clk 0:02:58.6]}
4. exd5 {[%clk 0:03:01.3]} 4... Qxd5 {[%clk 0:02:59.5]} 5. d4 {[%clk 0:03:01.8]}
5... Nf6 {[%clk 0:02:58.1]} 6. Na3 {[%clk 0:03:01.5]} 6... e6 {[%clk 0:02:57.2]}
7. Nb5 {[%clk 0:03:01.7]} 7... Qd7 {[%clk 0:02:48]} 8. Bg5 {[%clk 0:03:01]} 8...
cxd4 {[%clk 0:02:46.9]} 9. Nbxd4 {[%clk 0:02:59.8]} 9... Nd5 {[%clk 0:02:42.7]}
10. Nxc6 {[%clk 0:02:55.8]} 10... bxc6 {[%clk 0:02:42.1]} 11. Bc4 {[%clk
0:02:51.7]} 11... Bd6 {[%clk 0:02:38.5]} 12. O-O {[%clk 0:02:51.6]} 12... O-O
{[%clk 0:02:38.6]} 13. Qe2 {[%clk 0:02:51.7]} 13... h6 {[%clk 0:02:37.9]} 14.
Bh4 {[%clk 0:02:51]} 14... Nf4 {[%clk 0:02:35.4]} 15. Qc2 {[%clk 0:02:49.8]}
15... a5 {[%clk 0:02:31]} 16. Rad1 {[%clk 0:02:49.4]} 16... Qc7 {[%clk
0:02:28.8]} 17. Qd2 {[%clk 0:02:41.4]} 17... Nd5 {[%clk 0:01:57.6]} 18. a3
{[%clk 0:02:33.6]} 18... Bf4 {[%clk 0:01:49.1]} 19. Qd4 {[%clk 0:02:29.4]} 19...
e5 {[%clk 0:01:40]} 20. Qe4 {[%clk 0:02:24.9]} 20... Be6 {[%clk 0:00:34.9]} 21.
g3 {[%clk 0:02:17.3]} 21... f5 {[%clk 0:00:34.3]} 22. Qe2 {[%clk 0:02:12]} 22...
Bg5 {[%clk 0:00:26.8]} 23. Bxg5 {[%clk 0:02:10.3]} 23... hxg5 {[%clk 0:00:27.7]}
24. Nxg5 {[%clk 0:02:11.2]} 24... Bf7 {[%clk 0:00:20.1]} 25. Nxf7 {[%clk
0:02:08.1]} 25... Rxf7 {[%clk 0:00:20.5]} 26. Rxd5 {[%clk 0:02:07.4]} 26... cxd5
{[%clk 0:00:21.4]} 27. Bxd5 {[%clk 0:02:08.3]} 27... Rd8 {[%clk 0:00:19]} 28.
Rd1 {[%clk 0:02:04.3]} 28... Kf8 {[%clk 0:00:16.2]} 29. Bxf7 {[%clk 0:02:01.9]}
29... Rxd1+ {[%clk 0:00:16.2]} 30. Qxd1 {[%clk 0:02:02.8]} 30... Kxf7 {[%clk
0:00:17.1]} 31. Qd5+ {[%clk 0:02:02.6]} 31... Kf6 {[%clk 0:00:17.4]} 32. Kg2
{[%clk 0:02:00.2]} 32... Qb6 {[%clk 0:00:17.7]} 33. b4 {[%clk 0:01:59.3]} 33...
axb4 {[%clk 0:00:17.5]} 34. axb4 {[%clk 0:01:59.9]} 34... e4 {[%clk 0:00:17.8]}
35. Qd4+ {[%clk 0:01:58]} 35... Qxd4 {[%clk 0:00:17.4]} 36. cxd4 {[%clk
0:01:58.9]} 36... Ke6 {[%clk 0:00:17.9]} 37. Kf1 {[%clk 0:01:52.1]} 37... g5
{[%clk 0:00:17.8]} 38. Ke2 {[%clk 0:01:51.9]} 38... Kd5 {[%clk 0:00:17.5]} 39.
b5 {[%clk 0:01:51]} 39... f4 {[%clk 0:00:17.7]} 40. gxf4 {[%clk 0:01:51.5]}
40... gxf4 {[%clk 0:00:18.5]} 41. h4 {[%clk 0:01:52]} 1-0

[Event "*** Titled Tuesday Blitz"]
[Site "Chess.com"]
[Date "2020.11.10"]
[Round "1"]
[White "Gogolev_Artemy"]
[Black "Quiet_Desperation"]
[Result "1-0"]
[WhiteElo "2475"]
[BlackElo "1715"]
[TimeControl "180+1"]
[EndTime "10:05:37 PST"]
[Termination "Gogolev_Artemy won by resignation"]

1. Nf3 {[%clk 0:02:48.9]} 1... d5 {[%clk 0:02:58.3]} 2. c4 {[%clk 0:02:48.3]}
2... c6 {[%clk 0:02:58]} 3. g3 {[%clk 0:02:47.1]} 3... Nf6 {[%clk 0:02:57.3]} 4.
Bg2 {[%clk 0:02:47.4]} 4... Bg4 {[%clk 0:02:53.2]} 5. Ne5 {[%clk 0:02:44.9]}
5... Bf5 {[%clk 0:02:50.6]} 6. cxd5 {[%clk 0:02:36.5]} 6... cxd5 {[%clk
0:02:50.4]} 7. Qb3 {[%clk 0:02:36.4]} 7... Nc6 {[%clk 0:02:43.7]} 8. Nxc6 {[%clk
0:02:31.8]} 8... bxc6 {[%clk 0:02:43.8]} 9. d3 {[%clk 0:02:29.3]} 9... e5 {[%clk
0:02:38.1]} 10. Bg5 {[%clk 0:02:21.5]} 10... Be7 {[%clk 0:02:35.5]} 11. Qc3
{[%clk 0:02:12.2]} 11... Qd6 {[%clk 0:02:14.6]} 12. Nd2 {[%clk 0:02:05]} 12...
O-O {[%clk 0:02:12.1]} 13. O-O {[%clk 0:02:02.9]} 13... h6 {[%clk 0:02:09.6]}
14. Bxf6 {[%clk 0:02:02.6]} 14... Bxf6 {[%clk 0:02:09.4]} 15. e4 {[%clk
0:02:02.8]} 15... Be6 {[%clk 0:02:05]} 16. Rac1 {[%clk 0:02:01]} 16... Rfc8
{[%clk 0:02:03.3]} 17. Nb3 {[%clk 0:01:54.1]} 17... Bg5 {[%clk 0:01:50.6]} 18.
Rc2 {[%clk 0:01:43.7]} 18... d4 {[%clk 0:01:45.3]} 19. Qc5 {[%clk 0:01:39.3]}
19... Qc7 {[%clk 0:01:34]} 20. Qa5 {[%clk 0:01:28.4]} 20... Bxb3 {[%clk
0:01:26.6]} 21. Qxc7 {[%clk 0:01:27.5]} 21... Rxc7 {[%clk 0:01:27.5]} 22. axb3
{[%clk 0:01:27.7]} 22... Rb8 {[%clk 0:01:27.9]} 23. f4 {[%clk 0:01:20.9]} 23...
exf4 {[%clk 0:01:25.9]} 24. gxf4 {[%clk 0:01:20.8]} 24... Be7 {[%clk 0:01:25.7]}
25. e5 {[%clk 0:01:19.1]} 25... c5 {[%clk 0:01:24.7]} 26. Bd5 {[%clk 0:01:18.1]}
26... g6 {[%clk 0:01:12.8]} 27. Rg2 {[%clk 0:01:12.3]} 27... Kg7 {[%clk
0:01:05.8]} 28. Kf2 {[%clk 0:01:11.7]} 28... Rb6 {[%clk 0:00:55.7]} 29. Kf3
{[%clk 0:01:09]} 29... Kh7 {[%clk 0:00:47.9]} 30. Bxf7 {[%clk 0:01:04.9]} 30...
Bg5 {[%clk 0:00:41.5]} 31. e6 {[%clk 0:00:59.5]} 1-0

[Event "*** Titled Tuesday Blitz"]
[Site "Chess.com"]
[Date "2020.11.10"]
[Round "1"]
[White "asms9699"]
[Black "nitpicker"]
[Result "1-0"]
[WhiteElo "2552"]
[BlackElo "2199"]
[TimeControl "180+1"]
[EndTime "10:05:38 PST"]
[Termination "asms9699 won by resignation"]

1. c4 {[%clk 0:03:00.9]} 1... e5 {[%clk 0:01:47.5]} 2. g3 {[%clk 0:02:52.5]}
2... Nf6 {[%clk 0:01:45.5]} 3. Bg2 {[%clk 0:02:52.8]} 3... d5 {[%clk 0:01:43.6]}
4. cxd5 {[%clk 0:02:53.7]} 4... Nxd5 {[%clk 0:01:43.5]} 5. Nc3 {[%clk
0:02:54.2]} 5... Nf6 {[%clk 0:01:42.7]} 6. Nf3 {[%clk 0:02:53.8]} 6... Nc6
{[%clk 0:01:42.6]} 7. O-O {[%clk 0:02:53.8]} 7... Be7 {[%clk 0:01:41.5]} 8. b3
{[%clk 0:02:38.7]} 8... O-O {[%clk 0:01:40.5]} 9. Bb2 {[%clk 0:02:38.8]} 9...
Re8 {[%clk 0:01:39.6]} 10. Rc1 {[%clk 0:02:36.8]} 10... h6 {[%clk 0:01:33.7]}
11. d3 {[%clk 0:02:23.7]} 11... Bf8 {[%clk 0:01:26.6]} 12. Qd2 {[%clk 0:02:22]}
12... Be6 {[%clk 0:01:22.7]} 13. Rfd1 {[%clk 0:02:19.5]} 13... Nd5 {[%clk
0:01:21.5]} 14. Nxd5 {[%clk 0:02:05.5]} 14... Bxd5 {[%clk 0:01:20.8]} 15. e4
{[%clk 0:02:05.4]} 15... Be6 {[%clk 0:01:20.5]} 16. Nxe5 {[%clk 0:02:00]} 16...
Nxe5 {[%clk 0:01:16.4]} 17. Bxe5 {[%clk 0:02:00.9]} 17... Bg4 {[%clk 0:01:12.7]}
18. Bxc7 {[%clk 0:01:59.9]} 18... Qd4 {[%clk 0:01:11.9]} 19. Rc4 {[%clk
0:01:43]} 19... Qd7 {[%clk 0:01:10.9]} 20. Rdc1 {[%clk 0:01:37.9]} 20... Rac8
{[%clk 0:01:08]} 21. Bf4 {[%clk 0:01:24.6]} 21... Rcd8 {[%clk 0:01:06]} 22. Rc7
{[%clk 0:01:17.2]} 22... Qb5 {[%clk 0:01:05.8]} 23. d4 {[%clk 0:01:11.6]} 23...
Bb4 {[%clk 0:01:05.2]} 24. Qe3 {[%clk 0:01:05.1]} 24... Ba5 {[%clk 0:01:04.4]}
25. R7c5 {[%clk 0:01:03.3]} 25... Qa6 {[%clk 0:01:04]} 26. Bf1 {[%clk
0:01:01.5]} 26... Qb6 {[%clk 0:00:45]} 27. Bc7 {[%clk 0:00:59.8]} 27... Be2
{[%clk 0:00:32.3]} 1-0

[Event "*** Titled Tuesday Blitz"]
[Site "Chess.com"]
[Date "2020.11.10"]
[Round "1"]
[White "suyu28"]
[Black "BJthechessgod"]
[Result "1-0"]
[WhiteElo "2630"]
[BlackElo "2308"]
[TimeControl "180+1"]
[EndTime "10:05:44 PST"]
[Termination "suyu28 won by resignation"]

1. e4 {[%clk 0:02:56.1]} 1... c5 {[%clk 0:02:58.8]} 2. Nc3 {[%clk 0:02:53.6]}
2... Nc6 {[%clk 0:02:56.4]} 3. Bb5 {[%clk 0:02:52.5]} 3... Nd4 {[%clk 0:02:55]}
4. Nf3 {[%clk 0:02:46.7]} 4... Nxb5 {[%clk 0:02:51.8]} 5. Nxb5 {[%clk
0:02:46.1]} 5... a6 {[%clk 0:02:52.3]} 6. Nc3 {[%clk 0:02:41.4]} 6... g6 {[%clk
0:02:52.3]} 7. d4 {[%clk 0:02:39.5]} 7... cxd4 {[%clk 0:02:52]} 8. Qxd4 {[%clk
0:02:39.3]} 8... Nf6 {[%clk 0:02:41.1]} 9. e5 {[%clk 0:02:37.1]} 9... Ng8 {[%clk
0:02:39.4]} 10. Nd5 {[%clk 0:02:27.5]} 10... Bg7 {[%clk 0:02:37.5]} 11. Qc4
{[%clk 0:02:09.8]} 11... Kf8 {[%clk 0:02:05.4]} 12. O-O {[%clk 0:02:07.1]} 12...
b5 {[%clk 0:02:01.9]} 13. Qd3 {[%clk 0:02:06.1]} 13... Bb7 {[%clk 0:01:59.5]}
14. Bg5 {[%clk 0:02:05.4]} 14... h6 {[%clk 0:01:56.3]} 15. Bh4 {[%clk
0:02:05.2]} 15... g5 {[%clk 0:01:55.8]} 16. Bg3 {[%clk 0:02:03.4]} 16... Rc8
{[%clk 0:01:45.4]} 17. Rad1 {[%clk 0:02:02.2]} 17... Bxd5 {[%clk 0:01:37.2]} 18.
Qxd5 {[%clk 0:02:01.8]} 18... Rxc2 {[%clk 0:01:37.8]} 19. Qb7 {[%clk 0:01:58.3]}
19... Rc7 {[%clk 0:01:33.8]} 20. Qxa6 {[%clk 0:01:57.9]} 20... g4 {[%clk
0:01:16.6]} 21. Nd4 {[%clk 0:01:50.7]} 21... b4 {[%clk 0:01:13.6]} 22. Rc1
{[%clk 0:01:40.9]} 22... h5 {[%clk 0:00:58.4]} 23. Bf4 {[%clk 0:01:39.7]} 23...
Bh6 {[%clk 0:00:52]} 24. Rxc7 {[%clk 0:01:38.7]} 24... Qxc7 {[%clk 0:00:52.5]}
25. Rc1 {[%clk 0:01:37.7]} 25... Qxc1+ {[%clk 0:00:42.9]} 26. Bxc1 {[%clk
0:01:36.8]} 26... Bxc1 {[%clk 0:00:43.8]} 27. Qc8+ {[%clk 0:01:36.2]} 27... Kg7
{[%clk 0:00:43.8]} 28. Qxc1 {[%clk 0:01:33.8]} 28... Nh6 {[%clk 0:00:43]} 29.
Qg5+ {[%clk 0:01:33.4]} 29... Kh7 {[%clk 0:00:42.8]} 30. Qxh5 {[%clk 0:01:33.9]}
30... Rg8 {[%clk 0:00:43.7]} 31. Nf5 {[%clk 0:01:33.3]} 31... Rg6 {[%clk
0:00:43.3]} 32. a4 {[%clk 0:01:26.9]} 32... e6 {[%clk 0:00:43.1]} 33. Nxh6
{[%clk 0:01:25.4]} 33... Rxh6 {[%clk 0:00:42.2]} 34. Qxg4 {[%clk 0:01:25.2]}
34... Kh8 {[%clk 0:00:43.1]} 35. a5 {[%clk 0:01:25]} 35... Rg6 {[%clk
0:00:41.9]} 36. Qh4+ {[%clk 0:01:24.7]} 36... Kg7 {[%clk 0:00:42]} 37. a6 {[%clk
0:01:25.1]} 37... Rh6 {[%clk 0:00:41.4]} 38. Qg3+ {[%clk 0:01:25.1]} 38... Rg6
{[%clk 0:00:41.6]} 39. Qf3 {[%clk 0:01:25.5]} 39... Rg5 {[%clk 0:00:41.7]} 40.
a7 {[%clk 0:01:25.5]} 40... Rxe5 {[%clk 0:00:42.6]} 41. h4 {[%clk 0:01:25.3]}
41... Ra5 {[%clk 0:00:42]} 42. a8=Q {[%clk 0:01:24.9]} 42... Ra1+ {[%clk
0:00:42.9]} 43. Kh2 {[%clk 0:01:24.5]} 43... Rxa8 {[%clk 0:00:41.6]} 44. Qxa8
{[%clk 0:01:25.4]} 1-0